{"text_format":"1","workbook":"xlsx","n_sheets":14,"sheets":["TOP","参考","金額計算ツール","申請書入力シート","実績報告入力シート","←黄色のシートが入力シートです","これ以降入力できません→","１","２","CS","3","4","5","報告時ﾁｪｯｸｼｰﾄ"],"not_rendered":{"charts":0,"images":8,"macros":1,"external_links":0,"defined_names":12,"comments":1,"pivot_tables":0},"unopened":[],"bounds":{"document_bytes":16777216,"sheet_cells":100000,"rows_first":2000,"rows_last":500,"rows_between":2000,"halvings":0,"cell_chars":16384,"cell_head_chars":4096},"cells_cut":0,"cells_raw":0,"read":"whole","date_system":"1900"}

{"sheet":"TOP","index":0,"n_rows":12,"n_cols":26,"rows_kept":12,"cut":false,"hidden":false,"merged":[]}
[]
["【令和５年度専用】　　様式作成支援ツール TOP"]
[]
["・入力シートに入力することで、様式を簡単に出力できます。"]
["・申請時と重複する項目については、実績報告時の入力を省略できます。(入力後、必ず保存してください)"]
[]
["手続きを選択してください。"]
[]
[null,"展示会への出展が決まったら",null,null,null,null,null,null,"【出力されるもの】",null,null,null,null,null,null,null,null,null,"展示会終了後３０日以内",null,null,null,null,null,null,"【出力されるもの】"]
[null,null,null,null,null,null,null,null,"①様式第1号　展示会等出展事業助成金交付申請書",null,null,null,null,null,null,null,null,null,null,null,null,null,null,null,null,"①様式第8号　展示会等出展事業実績報告書"]
[null,null,null,null,null,null,null,null,"②様式第2号　展示会等出展事業計画書",null,null,null,null,null,null,null,null,null,null,null,null,null,null,null,null,"②様式第9号　展示会等出展事業出展状況報告書 (および出展時の写真貼付用)"]
[null,null,null,null,null,null,null,null,"③チェックシートおよび連絡先シート",null,null,null,null,null,null,null,null,null,null,null,null,null,null,null,null,"③報告時チェックシート"]

{"sheet":"参考","index":1,"n_rows":6,"n_cols":1,"rows_kept":6,"cut":false,"hidden":false,"merged":[]}
["【セキュリティリスク　このファイルのソースが信頼できないため、Microsoftによりマクロの実行がブロックされました。】と表示される場合（下図参照）"]
["本ツールはマクロを使用しております。上記メッセージが出る場合には、以下の方法を試してみてください。"]
["(※必ず当公社からダウンロードしたファイルであることをご確認のうえお試しください。)"]
["①本ファイルを、共有フォルダ等のネットワーク上にある場合、デスクトップに移動させます。"]
["②デスクトップ上の本ファイルを右クリックし、プロパティを選択します。 "]
["③全般タブ内にある、「セキュリティ：」の「許可する(K)」にチェックを入れてOKボタンを押下します。"]

{"sheet":"金額計算ツール","index":2,"n_rows":18,"n_cols":30,"rows_kept":18,"cut":false,"hidden":false,"merged":[[15,11,16,14],[15,15,16,16],[15,17,16,20],[15,21,16,24],[15,25,16,28],[13,25,13,26],[13,27,13,28],[14,11,14,14],[14,15,14,16],[14,17,14,20],[14,21,14,24],[14,25,14,28],[8,11,8,14],[8,15,8,16],[8,17,8,20],[8,21,8,24],[8,25,8,28],[9,11,10,14],[9,15,10,16],[9,17,10,20],[9,21,10,24],[9,25,10,28],[7,25,7,26],[7,27,7,28],[1,25,1,26],[1,27,1,28],[2,11,2,14],[2,15,2,16],[2,17,2,20],[2,21,2,24],[2,25,2,28],[3,11,4,14],[3,15,4,16],[3,17,4,20],[3,21,4,24],[3,25,4,28]]}
[]
["申請金額計算ツール",null,null,null,null,null,null,null,null,null,"Ⓐ通常の申請のかた（海外展示会への出展や川口市地域貢献事業者ではないかた）",null,null,null,null,null,null,null,null,null,null,null,null,null,null,"申請上限額",null,300000,null,"円"]
["該当するⒶⒷⒸいずれかの表にて、",null,null,null,null,null,null,null,null,null,null,"１小間あたりの小間代金(税抜)",null,null,null,"出展小間数",null,"出展金額合計(a)",null,null,null,"(a)×1/2の額",null,null,null,"申請上限額"]
["１小間あたりの小間代金(税抜)・出展小間数",null,null,null,null,null,null,null,null,null,null,null,null,null,null,null,null,{"$f":"PRODUCT(L4,P4)","v":0},null,null,null,{"$f":"R4/2","v":0},null,null,null,{"$f":"ROUNDDOWN(MIN(V4,$AB$2),-3)","v":0}]
["を入力してください。"]
["一番右に表示された「申請上限額」の範囲内",null,null,null,null,null,null,null,null,null,null,null,null,"（単位：円）",null,"（単位：小間）",null,null,null,"（単位：円）",null,null,null,"（単位：円）",null,null,"（単位：円／千円未満切捨）"]
["で申請することができます。"]
[null,null,null,null,null,null,null,null,null,null,"Ⓑ川口市地域貢献事業者のかた",null,null,null,null,null,null,null,null,null,null,null,null,null,null,"申請上限額",null,400000,null,"円"]
[null,null,null,null,null,null,null,null,null,null,null,"１小間あたりの小間代金(税抜)",null,null,null,"出展小間数",null,"出展金額合計(a)",null,null,null,"(a)×1/2の額",null,null,null,"申請上限額"]
[null,null,null,null,null,null,null,null,null,null,null,null,null,null,null,null,null,{"$f":"PRODUCT(L10,P10)","v":0},null,null,null,{"$f":"R10/2","v":0},null,null,null,{"$f":"ROUNDDOWN(MIN(V10,$AB$8),-3)","v":0}]
[]
[null,null,null,null,null,null,null,null,null,null,null,null,null,"（単位：円）",null,"（単位：小間）",null,null,null,"（単位：円）",null,null,null,"（単位：円）",null,null,"（単位：円／千円未満切捨）"]
[]
[null,null,null,null,null,null,null,null,null,null,"Ⓒ海外展示会へ出展の場合",null,null,null,null,null,null,null,null,null,null,null,null,null,null,"申請上限額",null,400000,null,"円"]
[null,null,null,null,null,null,null,null,null,null,null,"１小間あたりの小間代金(税抜)",null,null,null,"出展小間数",null,"出展金額合計(a)",null,null,null,"(a)×1/2の額",null,null,null,"申請上限額"]
[null,null,null,null,null,null,null,null,null,null,null,null,null,null,null,null,null,{"$f":"PRODUCT(L16,P16)","v":0},null,null,null,{"$f":"R16/2","v":0},null,null,null,{"$f":"ROUNDDOWN(MIN(V16,$AB$14),-3)","v":0}]
[]
[null,null,null,null,null,null,null,null,null,null,null,null,null,"（単位：円）",null,"（単位：小間）",null,null,null,"（単位：円）",null,null,null,"（単位：円）",null,null,"（単位：円／千円未満切捨）"]

{"sheet":"申請書入力シート","index":3,"n_rows":68,"n_cols":11,"rows_kept":68,"cut":false,"hidden":false,"merged":[[3,0,3,4],[4,0,4,4],[60,6,60,10],[61,6,61,10],[44,10,46,10],[47,10,51,10],[52,10,57,10],[37,6,38,6],[37,7,37,8],[38,7,38,9],[44,6,46,6],[47,6,51,6],[47,7,51,9],[52,6,57,6],[52,7,57,9],[44,7,46,9],[39,7,39,8],[40,7,40,8],[43,7,43,8],[35,10,36,10],[14,10,15,10],[16,7,16,9],[26,7,26,9],[27,7,27,9],[17,7,17,9],[18,7,18,9],[15,7,15,8],[14,7,14,8],[29,10,31,10],[8,7,8,9],[35,6,36,6],[35,9,36,9],[28,7,28,9],[32,7,32,9],[33,7,33,9],[35,7,36,8],[0,11,0,12],[34,7,34,9],[19,7,19,9],[9,7,9,9],[22,6,23,6],[22,7,23,8],[22,9,23,9],[10,10,11,10],[22,10,23,10],[12,6,13,6],[10,6,11,6],[12,10,13,10],[1,6,2,6],[5,7,5,9],[6,7,6,9],[7,7,7,9]]}
["申請時",null,null,null,null,null,"●申請日"]
[null,null,null,null,null,null,"提出日","年（令和）","月","日","注意事項・入力例"]
["入力シート",null,null,null,null,null,null,null,null,null,"書類提出日をご入力ください。\n※郵送の場合は投函日を入力してください。"]
["オレンジ色部分を入力して下さい"]
["(入力すると白になります)",null,null,null,null,null,"●申請者について"]
[null,null,null,null,null,null,"申請事業者名",null,null,null,"例）株式会社川産公社　\n※商号は省略しないでください。"]
[null,null,null,null,null,null,"郵便番号",null,null,null,"例）3330844　※ハイフンなし"]
[null,null,null,null,null,null,"所在地(川口市内)",null,null,null,"必ず川口市内の事業所住所を入力してください\n※納税証明書との一致を確認します。"]
[null,null,null,null,null,null,"代表者役職",null,null,null,"例）代表取締役"]
[null,null,null,null,null,null,"代表者氏名",null,null,null,"名字と名前の間にスペースを入れてください。"]
[null,null,null,null,null,null,"電話番号","市外局番","３桁","４桁","川口市内の事業所電話番号を入力してください。\n※ハイフンなし"]
[]
[null,null,null,null,null,null,"設立年月日","年(西暦)","月","日","西暦でご入力ください。"]
[]
[null,null,null,null,null,null,"資本金",null,null,"円","※単位にお気を付けください。\n　"]
[null,null,null,null,null,null,"従業員数",null,null,"人"]
[null,null,null,null,null,null,"担当者氏名",null,null,null,"本申請手続について連絡の取れるご担当者様をご入力ください。"]
[null,null,null,null,null,null,"所属部署・役職名",null,null,null,"例）本社　総務部　"]
[null,null,null,null,null,null,"担当者(TEL)",null,null,null,"※ハイフンあり\n日中すぐに連絡の取れる電話番号をご入力ください。"]
[null,null,null,null,null,null,"担当者連絡先(E-mail)",null,null,null,"上記TELにて連絡が取れなかったなど、\nメールでご連絡する場合がございます。"]
[]
[null,null,null,null,null,null,"●助成金の申請額"]
[null,null,null,null,null,null,"申請額",null,null,"円(千円未満切り捨て)","入力例　30万円⇒300,000\n金額に誤りはありませんか？申請額については\n金額計算ツールを必ずご確認ください。"]
[]
[]
[null,null,null,null,null,null,"●出展する展示会について"]
[null,null,null,null,null,null,"展示会等名称",null,null,null,"例）ライフスタイルショー夏・2022"]
[null,null,null,null,null,null,"会場名",null,null,null,"例）東京ビッグサイト"]
[null,null,null,null,null,null,"会場住所",null,null,null,"例）東京都江東区有明3-11-1"]
[null,null,null,null,null,null,"開催期間","年(令和)","月","日","展示会の開催期間を入力してください。"]
[null,null,null,null,null,null,"いつから"]
[null,null,null,null,null,null,"いつまで"]
[null,null,null,null,null,null,"主催者名",null,null,null,"展示会の主催者名を入力してください。\n㈱〇〇〇〇"]
[null,null,null,null,null,null,"主催者連絡先(TEL)",null,null,null,"例）03-〇〇〇〇-〇〇〇〇　\n※ハイフンを入れてください。"]
[null,null,null,null,null,null,"展示会後援者",null,null,null,"後援団体が多い場合、10団体ほどを目途に入力してください。(100文字以内)"]
[null,null,null,null,null,null,"展示会全体の小間数(予定)",null,null,"小間","展示会全体の総小間数になります。予定もしくは昨年度実績をご入力ください。"]
[]
[null,null,null,null,null,null,"入場者数(見込みまたは過去の実績)",null,null,"名","主催者公表の見込み入場者数もしくは過去実績でも構いません。"]
[null,null,null,null,null,null,null,null,null,null,"←選択してください"]
[null,null,null,null,null,null,"小間代金(1小間あたり)",null,null,"円（税抜）","数字のみ入力　(単位：円)"]
[null,null,null,null,null,null,"小間面積(1小間あたり)",null,null,"㎡","幅(間口)×奥行で計算してください。"]
[]
[null,null,null,null,null,null,"●事業計画について"]
[null,null,null,null,null,null,"御社の出展小間数",null,null,"小間","申請事業者様の出展小間数になります。\n半小間の場合には、0.5と入力してください。"]
[null,null,null,null,null,null,"出展製品等の名称",null,null,null,"出展予定の製品名・技術名について正式に入力してください。(100文字以内)"]
[]
[]
[null,null,null,null,null,null,"出展製品等の\n具体的な内容",null,null,null,"上記出展製品・技術の説明を入力してください。\n(200文字以内)"]
[]
[]
[]
[]
[null,null,null,null,null,null,"出展による効果\n（具体的に）",null,null,null,"出展目的や目標など、具体的に入力してください。\n(200文字以内)"]
[]
[]
[]
[]
[]
[]
[]
[null,null,null,null,null,null,"全ての項目について入力済ですか？(オレンジ部分は未入力です)"]
[null,null,null,null,null,null,"入力済の場合、印刷ボタンをクリックしてください。"]
[]
[]
[]
[]
[null,null,null,null,null,null,"印刷ボタンをクリックすると、計３枚の印刷プレビューが表示されます。"]
[null,null,null,null,null,null,"印刷設定は変更せず、そのまま出力してください。(両面印刷不可)"]

{"sheet":"実績報告入力シート","index":4,"n_rows":51,"n_cols":11,"rows_kept":51,"cut":false,"hidden":false,"merged":[[3,0,3,4],[30,6,40,6],[30,7,40,9],[30,10,40,10],[19,10,20,10],[27,7,27,8],[27,10,29,10],[29,7,29,8],[28,7,28,8],[23,10,26,10],[23,7,23,8],[19,7,19,8],[20,7,20,8],[14,7,14,9],[15,7,15,9],[13,10,18,10],[24,6,26,6],[24,7,26,9],[0,11,0,12],[1,6,2,6],[1,12,2,14],[6,10,7,10],[13,7,13,9],[9,6,10,6],[8,10,10,10],[6,6,7,6],[6,7,7,8],[6,9,7,9]]}
["実績報告書の作成"]
[null,null,null,null,null,null,"書類提出日","年（令和）","月","日","注意事項・入力見本"]
["入力シート",null,null,null,null,null,null,null,null,null,"書類提出日※郵送の場合は投函日"]
["オレンジ色部分を入力して下さい"]
[]
[null,null,null,null,null,null,"●助成金の交付申請額(申請時に決定を受けた金額)"]
[null,null,null,null,null,null,"申請額★",{"$f":"申請書入力シート!H23","v":0},null,"円(千円未満切り捨て)","★変更ありませんか？\n変更ある場合には、変更手続が必要です。"]
[]
[null,null,null,null,null,null,"交付決定番号","川産振発　第",null,"号","事務局より送付した交付決定通知書\n(様式第３号)をご確認ください。\n交付決定通知書がお手元にない場合には\n事務局へお問い合わせください。"]
[null,null,null,null,null,null,"交付決定通知日","年（令和）","月","日"]
[]
[]
[null,null,null,null,null,null,"●出展した展示会について"]
[null,null,null,null,null,null,"展示会等名称★",{"$f":"申請書入力シート!H27","v":0},null,null,"★変更ありませんか？\n変更ある場合には変更手続が必要です。"]
[null,null,null,null,null,null,"会場名★",{"$f":"申請書入力シート!H28","v":0}]
[null,null,null,null,null,null,"会場住所★",{"$f":"申請書入力シート!H29","v":0}]
[null,null,null,null,null,null,"開催期間★","年(令和)","月","日"]
[null,null,null,null,null,null,"いつから★",{"$f":"申請書入力シート!H31","v":0},{"$f":"申請書入力シート!I31","v":0},{"$f":"申請書入力シート!J31","v":0}]
[null,null,null,null,null,null,"いつまで★",null,{"$f":"申請書入力シート!I32","v":0},{"$f":"申請書入力シート!J32","v":0}]
[null,null,null,null,null,null,"展示会全体の小間数(主催者公表)",null,null,"小間","主催者公表の数字を入力してください。\n不明な場合は、主催者へお問い合わせください。"]
[null,null,null,null,null,null,"入場者数\n(主催者公表)",null,null,"名"]
[]
[null,null,null,null,null,null,"●出展実績について"]
[null,null,null,null,null,null,"御社の出展小間数★",{"$f":"申請書入力シート!H44","v":0},null,"小間","★変更ありませんか？\n変更ある場合には変更手続が必要です。"]
[null,null,null,null,null,null,"出展製品等の\n具体的な内容★",{"$f":"申請書入力シート!H45","v":0}]
[]
[]
[null,null,null,null,null,null,"開催期間中の\n商談件数",null,null,"件","展示会開催期間中の商談件数・成約数等を\nご入力ください。\n展示会開催中の成約件数が０件の場合には、「０」とご入力ください。\n"]
[null,null,null,null,null,null,"開催期間中の\n成約件数",null,null,"件"]
[null,null,null,null,null,null,"開催期間中の\n成約金額",null,null,"円"]
[null,null,null,null,null,null,"出展による効果\n（具体的に）",null,null,null,"詳細をご入力ください。\n（400文字まで）"]
[]
[]
[]
[]
[]
[]
[]
[]
[]
[]
[]
[]
[]
[null,null,null,null,null,null,"全ての項目について入力済ですか？(オレンジ部分は未入力です)"]
[null,null,null,null,null,null,"入力済の場合、印刷ボタンをクリックしてください。"]
[]
[]
[]
[null,null,null,null,null,null,"印刷ボタンをクリックすると、計4枚の印刷プレビューが表示されます。"]
[null,null,null,null,null,null,"印刷設定は変更せず、そのまま出力してください。(両面印刷不可)"]

{"sheet":"←黄色のシートが入力シートです","index":5,"n_rows":0,"n_cols":0,"rows_kept":0,"cut":false,"hidden":false,"merged":[]}

{"sheet":"これ以降入力できません→","index":6,"n_rows":0,"n_cols":0,"rows_kept":0,"cut":false,"hidden":false,"merged":[]}

{"sheet":"１","index":7,"n_rows":36,"n_cols":23,"rows_kept":36,"cut":false,"hidden":false,"merged":[[27,2,29,7],[27,8,29,21],[34,1,34,22],[23,16,24,16],[23,17,24,18],[23,19,24,19],[25,2,26,7],[25,9,26,12],[25,13,26,13],[25,14,26,15],[25,16,26,18],[25,19,26,19],[23,14,24,15],[22,1,22,2],[22,3,22,9],[23,2,24,7],[23,9,24,12],[23,13,24,13],[20,1,20,2],[20,3,20,9],[20,11,20,21],[21,1,21,2],[21,3,21,9],[21,10,21,22],[19,1,19,2],[19,3,19,9],[19,11,19,16],[10,14,10,22],[11,14,11,22],[12,14,12,16],[12,17,12,21],[13,14,13,15],[13,17,13,18],[13,20,13,22]]}
[]
["様式第１号（第７条関係）"]
[]
[null,null,null,"展 示 会 等 出 展 事 業 助 成 金 交 付 申 請 書"]
[]
[null,null,null,null,null,null,null,null,null,null,null,null,null,null,null,"令和",null,{"$f":"申請書入力シート!H3","v":0},"年",{"$f":"申請書入力シート!I3","v":0},"月",{"$f":"申請書入力シート!J3","v":0},"日"]
[]
[null,"（あて先）　公益財団法人川口産業振興公社"]
[null,null,null,null," 理 事 長"]
[]
[null,null,null,null,null,null,null,null,"申請者　所 在 地",null,null,null,null,null,{"$f":"申請書入力シート!H8","v":0}]
[null,null,null,null,null,null,null,null,null,null," 事業所名",null,null,null,{"$f":"申請書入力シート!H6","v":0}]
[null,null,null,null,null,null,null,null,null,null," 代 表 者",null,null,null,{"$f":"申請書入力シート!H9","v":0},null,null,{"$f":"申請書入力シート!H10","v":0},null,null,null,null,"印"]
[null,null,null,null,null,null,null,null,null,null," 電    話",null,null,null,{"$f":"申請書入力シート!H12","v":0},null,"-",{"$f":"申請書入力シート!I12","v":0},null,"-",{"$f":"申請書入力シート!J12","v":0}]
[]
[null,null,"公益財団法人川口産業振興公社展示会等出展事業助成金交付要綱第７条の"]
[null,"規定により、展示会等出展事業助成金交付の申請をします。"]
[]
[null,null,null,null,null,null,null,null,null,null,null,"記"]
[null,"１.",null,"交付申請額",null,null,null,null,null,null,null,{"$f":"申請書入力シート!H23","v":0},null,null,null,null,null,"円（千円未満切捨）"]
[null,"２.",null,"展示会等の名称",null,null,null,null,null,null,null,{"$f":"申請書入力シート!H27","v":0}]
[null," ３．",null,"出展する展示会等の内容",null,null,null,null,null,null," 別紙「事業計画書（様式第２号）」のとおり"]
[null," ４．",null,"申請者の概要"]
[null,null,"設立年月日",null,null,null,null,null,null,{"$f":"申請書入力シート!H14","v":0},null,null,null,"年",{"$f":"申請書入力シート!I14","v":0},null,"月",{"$f":"申請書入力シート!J14","v":0},null,"日"]
[]
[null,null,"資本金・従業員数",null,null,null,null,null,null,{"$f":"申請書入力シート!H15","v":0},null,null,null,"円","・",null,{"$f":"申請書入力シート!H16","v":0},null,null,"人"]
[]
[null,null,"主な製品",null,null,null,null,null,{"$f":"申請書入力シート!H45","v":0}]
[]
[]
[]
[null,null,"　※添付書類　税の証明書、会社概要　"]
[null,null,null,null,null,"  任意の団体等の場合は、申請者の定款または規約等及び構成員名簿"]
[]
[null,"　ご記入いただいた個人情報につきましては、当公社の個人情報保護要綱の規定に基づき、本事"]
[null,"業の目的以外には使用いたしません。"]

{"sheet":"２","index":8,"n_rows":34,"n_cols":21,"rows_kept":34,"cut":false,"hidden":false,"merged":[[19,1,20,6],[21,1,22,6],[21,7,22,22],[23,1,26,6],[23,7,26,22],[19,7,20,12],[19,13,20,14],[19,15,20,15],[19,16,20,22],[27,1,30,6],[27,7,30,22],[31,1,32,6],[31,7,31,10],[31,11,31,22],[32,7,32,9],[32,10,32,15],[32,18,32,22],[9,21,10,21],[9,15,10,16],[9,17,10,17],[9,18,10,18],[9,19,10,19],[9,20,10,20],[9,22,10,22],[9,14,10,14],[9,13,10,13],[13,1,14,6],[13,7,14,22],[9,1,10,6],[9,7,10,8],[9,9,10,9],[9,10,10,10],[9,11,10,11],[11,1,12,6],[11,7,11,10],[11,11,11,22],[12,7,12,10],[12,11,12,22],[9,12,10,12],[15,1,18,6],[15,7,15,11],[15,12,15,15],[15,18,15,22],[16,7,16,11],[16,12,16,15],[16,18,16,22],[17,7,17,11],[17,12,17,15],[17,18,17,22],[18,7,18,11],[18,12,18,15],[18,18,18,22],[3,4,3,19],[5,1,6,6],[5,7,6,22],[7,1,8,6],[7,7,7,9],[7,10,7,22],[8,7,8,9],[8,10,8,22]]}
[]
[null,"様式第２号（第７条関係）"]
[]
[null,null,null,null,"展示会等出展事業計画書"]
[]
[null,"展示会等の名称 ",null,null,null,null,null,{"$f":"申請書入力シート!H27","v":0}]
[]
[null,"開催場所",null,null,null,null,null,"会場名：",null,null,{"$f":"申請書入力シート!H28","v":0}]
[null,null,null,null,null,null,null,"所在地：",null,null,{"$f":"申請書入力シート!H29","v":0}]
[null,"開催期間",null,null,null,null,null,"令和",null,{"$f":"申請書入力シート!H31","v":0},"年",{"$f":"申請書入力シート!I31","v":0},"月",{"$f":"申請書入力シート!J31","v":0},"日","～",null,{"$f":"申請書入力シート!I32","v":0},"月",{"$f":"申請書入力シート!J32","v":0},"日"]
[]
[null,"主催者",null,null,null,null,null,"主催者名：",null,null,null,{"$f":"申請書入力シート!H33","v":0}]
[null,null,null,null,null,null,null,"連絡先：",null,null,null,{"$f":"申請書入力シート!H34","v":0}]
[null,"後援者",null,null,null,null,null,{"$f":"申請書入力シート!H35","v":0}]
[]
[null,"出展予定小間数等",null,null,null,null,null,"総小間数：",null,null,null,null,{"$f":"申請書入力シート!H36","v":0},null,null,null,"小間"]
[null,null,null,null,null,null,null,"出展予定小間数：",null,null,null,null,{"$f":"申請書入力シート!H44","v":0},null,null,null,"小間"]
[null,null,null,null,null,null,null,"１小間の金額：",null,null,null,null,{"$f":"申請書入力シート!H40","v":0},null,null,null,"円"]
[null,null,null,null,null,null,null,"１小間の面積：",null,null,null,null,{"$f":"申請書入力シート!H41","v":0},null,null,null,"㎡"]
[null,"入場者数（見込みま\nたは過去の実績）",null,null,null,null,null,{"$f":"申請書入力シート!H38","v":0},null,null,null,null,null,"名",null,"※",{"$f":"申請書入力シート!H39","v":0}]
[]
[null,"出展製品等の名称",null,null,null,null,null,{"$f":"申請書入力シート!H45","v":0}]
[]
[null," 出展製品等の具体的\n な内容",null,null,null,null,null,{"$f":"申請書入力シート!H48","v":0}]
[]
[]
[]
[null,"出展による効果",null,null,null,null,null,{"$f":"申請書入力シート!H53","v":0}]
[]
[]
[]
[null,"担当者（職・氏名）\n連絡先\n",null,null,null,null,null,"所属部署・職：",null,null,null,{"$f":"申請書入力シート!H18","v":0}]
[null,null,null,null,null,null,null,"ＴＥＬ：",null,null,{"$f":"申請書入力シート!H19","v":0},null,null,null,null,null,"氏名：",null,{"$f":"申請書入力シート!H17","v":0}]
[null,null,null,null,null,null,null,null,null,null,null,null,null,null,"※添付書類　開催要領・パンフレット等"]

{"sheet":"CS","index":9,"n_rows":40,"n_cols":26,"rows_kept":40,"cut":false,"hidden":false,"merged":[[32,1,32,2],[33,1,33,2],[34,1,34,2],[35,1,35,2],[36,1,36,2],[32,14,32,25],[33,14,33,25],[34,14,34,25],[35,14,35,25],[36,14,36,25],[32,3,32,13],[33,3,33,13],[34,3,34,13],[35,3,35,13],[36,3,36,13],[28,1,28,25],[23,1,23,16],[24,1,24,16],[25,1,25,16],[23,17,23,24],[24,17,24,24],[25,17,25,24],[21,1,21,16],[22,1,22,16],[20,17,20,24],[21,17,21,24],[22,17,22,24],[9,1,9,24],[10,1,10,24],[11,1,11,24],[12,1,13,24],[20,1,20,16],[31,3,31,13],[31,14,31,25],[1,1,1,24],[2,23,2,25],[4,1,4,24],[5,1,5,24],[6,1,6,24],[12,25,13,25],[14,1,15,24],[14,25,15,25],[18,1,18,16],[18,17,18,24],[19,17,19,24],[19,1,19,16],[7,1,7,24],[8,1,8,24]]}
[null,"【交付申請書と一緒に提出してください】"]
[null,"展示会等出展事業助成金　チェックシートおよび連絡先シート"]
[null,null,null,null,null,null,null,null,null,null,null,null,null,null,null,null,null,null,null,null,null,null,null,"申請時用"]
[null,"■チェックをお願いします。"]
[null,"チェック項目",null,null,null,null,null,null,null,null,null,null,null,null,null,null,null,null,null,null,null,null,null,null,null,"チェック"]
[null,"展示会開催の10日前までの申請ですか。"]
[null,"令和５年４月１日～令和６年３月１０日までに開催される展示会ですか。"]
[null,"申請金額に誤りがありませんか。(消費税込で計算していないか、千円未満切り捨てとなっているか)"]
[null,"様式第１号・第２号の、すべての項目が記入されていますか。"]
[null,"様式第１号には、代表者印が押捺されていますか。"]
[null,"提出書類はすべてそろっていますか。(下記参照)"]
[null,"不備があった場合、すぐに補完出来ない場合には書類を返却させて頂く場合がございます。"]
[null,"展示会終了後30日以内に、実績報告が必要です。報告期日を超過した場合には、申請を取り消しさせていただく場合がございます。事務局から期日の連絡は行いません。"]
[]
[null,"予算額には限りがあります。不備のない書類が事務局に提出された(郵送の場合には到着した)順に受理いたします。不備があった場合、補完後の受理となります。ご了承ください。"]
[]
[]
[null,"■提出書類一覧"]
[null,"書類名",null,null,null,null,null,null,null,null,null,null,null,null,null,null,null,"注意点",null,null,null,null,null,null,null,"チェック"]
[null,"　【必須】様式第１号　展示会等出展事業助成金交付申請書",null,null,null,null,null,null,null,null,null,null,null,null,null,null,null,"代表者印の押捺、申請金額に誤りがないか"]
[null,"　【必須】様式第２号　展示会等出展事業計画書",null,null,null,null,null,null,null,null,null,null,null,null,null,null,null,"全ての項目を記入しているか"]
[null,"　【必須】川口市発行の納税証明書（直近３ヶ月以内）",null,null,null,null,null,null,null,null,null,null,null,null,null,null,null,"領収証は不可、国税・県税は対象外"]
[null,"　【必須】申請事業者の会社概要、定款等",null,null,null,null,null,null,null,null,null,null,null,null,null,null,null,"最新のものか"]
[null,"　【必須】展示会主催者が発行した開催要領など",null,null,null,null,null,null,null,null,null,null,null,null,null,null,null,"小間面積・小間代金など様式第2号の記載事項と相違ないか"]
[null,"　【該当者のみ】地域貢献事業者である場合には、認定証の写し",null,null,null,null,null,null,null,null,null,null,null,null,null,null,null,"認定期限内であること"]
[null,"　【必須】本チェックシートおよび連絡先シート",null,null,null,null,null,null,null,null,null,null,null,null,null,null,null,"合わせてご提出をお願いします"]
[]
[null,"■連絡先メールアドレス(お電話でご連絡が取れなかった時の連絡手段としてお知らせください。)"]
[null,{"$f":"申請書入力シート!H20","v":0}]
[]
[null,"■書類送付先(郵送先住所をご確認ください)"]
[null,null,null,"申請住所等",null,null,null,null,null,null,null,null,null,null,"郵送先が左記と異なる場合にご記入ください"]
[null,"郵便番号",null,{"$f":"申請書入力シート!H7","v":0}]
[null,"住所",null,{"$f":"申請書入力シート!H8","v":0}]
[null,"事業者名",null,{"$f":"申請書入力シート!H6","v":0}]
[null,"担当部署",null,{"$f":"申請書入力シート!H18","v":0}]
[null,"担当者名",null,{"$f":"申請書入力シート!H17","v":0}]
[]
[null,"【公社使用欄】",null,null,"事業者名：",null,null,null,null,null,null,null,null,null,null,null,"到着日："]
[null,null,null,"　　","要対応：不備・不足・その他(　　　　　　　　　　　　)",null,null,null,null,null,null,null,null,null,null,null,"補完日："]

{"sheet":"3","index":10,"n_rows":39,"n_cols":23,"rows_kept":39,"cut":false,"hidden":false,"merged":[[3,2,3,21],[24,1,26,6],[27,1,29,6],[30,1,32,6],[27,7,29,22],[30,7,32,22],[24,13,26,14],[24,8,26,10],[24,11,26,12],[37,1,37,22],[18,1,18,21],[19,1,19,21],[11,14,11,22],[12,14,12,22],[13,14,13,16],[13,17,13,21],[14,14,14,15],[14,17,14,18],[14,20,14,22],[33,7,35,22],[24,16,26,17],[33,1,35,6],[17,14,17,21]]}
[]
["様式第８号（第１１条関係）"]
[]
[null,null,"展 示 会 等 出 展 事 業 実 績 報 告 書"]
[]
[]
[null,null,null,null,null,null,null,null,null,null,null,null,null,null,null,"令和",null,{"$f":"実績報告入力シート!H3","v":0},"年",{"$f":"実績報告入力シート!I3","v":0},"月",{"$f":"実績報告入力シート!J3","v":0},"日"]
[]
[null,"（あて先）　公益財団法人川口産業振興公社"]
[null,null,null,null," 理 事 長"]
[]
[null,null,null,null,null,null,null,null,"申請者　所 在 地",null,null,null,null,null,{"$f":"申請書入力シート!H8","v":0}]
[null,null,null,null,null,null,null,null,null,null," 事業所名",null,null,null,{"$f":"申請書入力シート!H6","v":0}]
[null,null,null,null,null,null,null,null,null,null," 代 表 者",null,null,null,{"$f":"申請書入力シート!H9","v":0},null,null,{"$f":"申請書入力シート!H10","v":0},null,null,null,null,"印"]
[null,null,null,null,null,null,null,null,null,null," 電    話",null,null,null,{"$f":"申請書入力シート!H12","v":0},null,"-",{"$f":"申請書入力シート!I12","v":0},null,"-",{"$f":"申請書入力シート!J12","v":0}]
[]
[]
[null," 令和　　",null,{"$f":"実績報告入力シート!H11","v":0},"年",{"$f":"実績報告入力シート!I11","v":0},"月",{"$f":"実績報告入力シート!J11","v":0},"日付け川産振発第",null,null,null,null,{"$f":"実績報告入力シート!I9","v":0},"号にて展示会等出展事業助成"]
[null,"金交付の決定を受けた展示会等出展事業について、出展事業が完了したので"]
[null,"公益財団法人川口産業振興公社展示会等出展事業助成金交付要綱第１１条の"]
[null,"規定により報告します。"]
[]
[null,null,null,null,null,null,null,null,null,null,null,"記"]
[]
[null,"交 付 申 請 額　",null,null,null,null,null,null,{"$f":"申請書入力シート!H23","v":0},null,null,"円"]
[]
[]
[null,"展示会等の名称",null,null,null,null,null,{"$f":"申請書入力シート!H27","v":0}]
[]
[]
[null,"展示会等の概要",null,null,null,null,null,"別紙「出展状況報告書（様式第９号）」のとおり"]
[]
[]
[null,"添付書類",null,null,null,null,null,"(1)　出展者名簿\n(2)　請求書及び領収証の写し（※代表者印を使用し原本証明すること）\n(3)　出展した内容のわかるパンフレット等"]
[]
[]
[]
[null,"　ご記入いただいた個人情報につきましては、当公社の個人情報保護要綱の規定に基づき、"]
[null,"本事業の目的以外には使用いたしません。"]

{"sheet":"4","index":11,"n_rows":35,"n_cols":21,"rows_kept":35,"cut":false,"hidden":false,"merged":[[11,11,11,15],[12,11,12,15],[22,8,32,22],[11,16,11,17],[12,16,12,17],[33,1,34,6],[33,7,33,10],[33,11,33,22],[34,7,34,9],[34,10,34,15],[34,18,34,22],[18,1,18,6],[18,14,18,17],[19,14,19,17],[20,14,20,17],[15,1,16,6],[15,7,16,12],[15,13,16,14],[15,15,16,15],[15,16,16,22],[13,1,14,6],[13,7,14,22],[9,20,10,20],[9,21,10,21],[9,22,10,22],[11,1,12,6],[11,7,11,10],[12,7,12,10],[9,13,10,13],[9,14,10,14],[9,15,10,16],[9,17,10,17],[9,18,10,18],[9,19,10,19],[9,12,10,12],[9,1,10,6],[9,7,10,8],[9,9,10,9],[9,10,10,10],[9,11,10,11],[3,4,3,19],[5,1,6,6],[5,7,6,22],[7,1,8,6],[7,7,7,9],[7,10,7,22],[8,7,8,9],[8,10,8,22]]}
[]
[null,"様式第９号（第１１条関係）"]
[]
[null,null,null,null,"展示会等出展事業出展状況報告書"]
[]
[null,"展示会等の名称 ",null,null,null,null,null,{"$f":"申請書入力シート!H27","v":0}]
[]
[null,"開　催　場　所",null,null,null,null,null,"会 場 名：",null,null,{"$f":"申請書入力シート!H28","v":0}]
[null,null,null,null,null,null,null,"所 在 地：",null,null,{"$f":"申請書入力シート!H29","v":0}]
[null,"開　催　期　間",null,null,null,null,null,"令和",null,{"$f":"申請書入力シート!H31","v":0},"年",{"$f":"申請書入力シート!I31","v":0},"月",{"$f":"申請書入力シート!J31","v":0},"日","～",null,{"$f":"申請書入力シート!I32","v":0},"月",{"$f":"申請書入力シート!J32","v":0},"日"]
[]
[null,"出展小間数等",null,null,null,null,null,"出展小間数：",null,null,null,{"$f":"実績報告入力シート!H20","v":0},null,null,null,null,"小間"]
[null,null,null,null,null,null,null,"入場者数：",null,null,null,{"$f":"実績報告入力シート!H21","v":0},null,null,null,null,"　名"]
[null,"出展製品等の名称",null,null,null,null,null,{"$f":"申請書入力シート!H45","v":0}]
[]
[null,"出展者小間数",null,null,null,null,null,{"$f":"実績報告入力シート!H24","v":0},null,null,null,null,null,"小間"]
[]
[]
[null,"出展による効果等　　　",null,null,null,null,null,"開催期間中の商談件数：",null,null,null,null,null,null,{"$f":"実績報告入力シート!H28","v":0},null,null,null,"件"]
[null,null,null,null,null,null,null,null,null,null,null,"成約件数：",null,null,{"$f":"実績報告入力シート!H29","v":0},null,null,null,"件"]
[null,null,null,null,null,null,null,null,null,null,null,"成約金額：",null,null,{"$f":"実績報告入力シート!H30","v":0},null,null,null,"円"]
[null,null,null,null,null,null,null,null,"その他効果"]
[null,null,null,null,null,null,null,null,{"$f":"実績報告入力シート!H31","v":0}]
[]
[]
[]
[]
[]
[]
[]
[]
[]
[]
[null,"担当者（職・氏名）\n連絡先\n",null,null,null,null,null,"所属部署・職：",null,null,null,{"$f":"申請書入力シート!H18","v":0}]
[null,null,null,null,null,null,null,"ＴＥＬ：",null,null,{"$f":"申請書入力シート!H19","v":0},null,null,null,null,null,"氏名：",null,{"$f":"申請書入力シート!H17","v":0}]

{"sheet":"5","index":12,"n_rows":34,"n_cols":10,"rows_kept":34,"cut":false,"hidden":false,"merged":[[25,1,26,6],[25,7,26,22],[21,19,22,19],[21,20,22,20],[21,21,22,21],[21,22,22,22],[23,1,24,6],[23,9,23,15],[23,16,23,17],[24,7,24,10],[24,16,24,17],[21,12,22,12],[21,13,22,13],[21,14,22,14],[21,15,22,16],[21,17,22,17],[3,5,3,18],[13,9,13,15],[20,7,20,9],[20,10,20,22],[21,1,22,6],[21,7,22,8],[21,9,22,9],[21,10,22,10],[21,11,22,11],[13,1,14,6],[13,16,13,17],[14,7,14,10],[14,16,14,17],[11,13,12,13],[11,14,12,14],[11,15,12,16],[43,7,43,9],[43,10,43,15],[15,1,16,6],[15,7,16,22],[17,1,19,6],[17,7,19,12],[17,13,19,14],[17,15,19,15],[17,16,19,22],[21,18,22,18],[43,18,43,22],[29,1,29,6],[29,14,29,17],[42,1,43,6],[42,7,42,10],[42,11,42,22],[11,17,12,17],[11,1,12,6],[11,7,12,8],[11,9,12,9],[11,10,12,10],[11,11,12,11],[11,12,12,12],[5,1,6,6],[5,7,6,22],[7,1,10,6],[7,7,7,9],[7,10,7,22],[10,7,10,9],[10,10,10,22],[11,20,12,20],[11,21,12,21],[11,22,12,22],[11,18,12,18],[11,19,12,19]]}
[]
[null,"（第１１条関係）"]
[]
[null,null,null,null,null,"出展した展示会等の写真"]
[]
[null,"展示会等の名称 ",null,null,null,null,null,{"$f":"申請書入力シート!H27","v":0}]
[]
[]
[]
[]
[]
[]
[]
[null,null,null,null,null,null,null,null,null,"糊等で貼ってください"]
[]
[]
[]
[]
[]
[]
[]
[]
[]
[null,null,null,null,null,null,null,null,null,"糊等で貼ってください"]
[]
[]
[]
[]
[]
[]
[]
[]
[null,null,null,null,"※　小間番号板、社名表示板が写っている写真、出展の様子が分かる写真を"]
[null,null,null,null,"貼付してください。"]

{"sheet":"報告時ﾁｪｯｸｼｰﾄ","index":13,"n_rows":39,"n_cols":27,"rows_kept":39,"cut":false,"hidden":false,"merged":[[26,1,26,16],[26,17,26,25],[27,1,28,16],[27,17,28,25],[23,1,23,16],[23,17,23,25],[25,1,25,16],[25,17,25,25],[29,1,29,16],[29,17,29,25],[37,1,37,4],[37,5,37,16],[37,17,37,20],[37,21,37,26],[38,1,39,4],[38,5,39,16],[38,17,39,20],[38,21,39,26],[1,1,2,26],[4,1,4,24],[4,25,4,26],[5,1,6,24],[5,25,6,26],[11,1,12,24],[11,25,12,26],[24,1,24,16],[24,17,24,25],[7,1,8,24],[7,25,8,26],[9,1,10,24],[21,1,21,16],[21,17,21,25],[22,1,22,16],[22,17,22,25],[9,25,10,26],[13,1,14,24],[13,25,14,26],[17,1,18,24],[17,25,18,26],[15,1,16,24],[15,25,16,26]]}
[null,"【実績報告書と一緒に提出してください】"]
[null,"展示会等出展事業助成金　報告時チェックシート"]
[]
[null,null,null,null,null,null,null,null,null,null,null,null,null,"ご確認のうえ、チェックをお願いします。",null,null,null,null,null,null,null,null,null,null,"報告時用"]
[null,"」",null,null,null,null,null,null,null,null,null,null,null,null,null,null,null,null,null,null,null,null,null,null,null,"チェック"]
[null,"展示会終了後30日以内に、実績報告が必要となります。報告期日を超過した場合には、申請が取り消しとなる場合がございます。ご注意願います。"]
[]
[null,"様式第８号・第９号の、すべての項目が記入されていますか。\n未記入があった場合には再提出いただきます。"]
[]
[null,"様式第８号には、代表者印が押捺されていますか。"]
[]
[null,"申請金額に誤りがありませんか。\nまた申請時の事業内容(出展する展示会や展示製品等)と変更はありませんか。"]
[]
[null,"展示会出展時の写真が貼り付けされていますか。"]
[]
[null,"出展料金の請求書および領収証の写しには、原本証明がされていますか。"]
[]
[null,"下記提出書類はすべてそろっていますか。書類の不足や不備があり、一定期間内に補完出来ない場合には一度書類を返却させていただきます。"]
[]
[]
[null,"提出書類一覧"]
[null,"書類名",null,null,null,null,null,null,null,null,null,null,null,null,null,null,null,"注意事項",null,null,null,null,null,null,null,null,"チェック"]
[null,"　【必須】様式第8号　展示会等出展事業実績報告書",null,null,null,null,null,null,null,null,null,null,null,null,null,null,null,"代表者印が押されているか、項目に誤りがないか"]
[null,"　【必須】様式第9号　展示会等出展事業出展状況報告書",null,null,null,null,null,null,null,null,null,null,null,null,null,null,null,"全ての項目が埋まっているか"]
[null,"　【必須】(第11条関係)　出展した展示会等の写真",null,null,null,null,null,null,null,null,null,null,null,null,null,null,null,"出展時の様子(小間番号・社名版)が確認できますか"]
[null,"　【必須】出展者名簿(主催者が発行したもの)",null,null,null,null,null,null,null,null,null,null,null,null,null,null,null,"会場MAPも可、申請事業者名が確認できること"]
[null,"　【必須】展示会等の会場で配布した、製品パンフレット",null,null,null,null,null,null,null,null,null,null,null,null,null,null,null,"必ずご提出が必要です"]
[null,"　【必須】出展料金の請求書および領収証の写し(原本証明要※)",null,null,null,null,null,null,null,null,null,null,null,null,null,null,null,"それぞれに原本証明が必要です(下記参照)"]
[]
[null,"　【必須】本チェックシート",null,null,null,null,null,null,null,null,null,null,null,null,null,null,null,"ご確認のうえ合わせてご提出をお願いします"]
[]
["※原本証明…余白部分に下記見本の様に表記願います。"]
["原本と相違ありません"]
["株式会社〇〇〇〇"]
["代表取締役　〇〇〇〇"]
[]
[null,"公社使用欄"]
[null,"事業者名",null,null,null,null,null,null,null,null,null,null,null,null,null,null,null,"到着日"]
[null,"要対応",null,null,null,"書類不足(　　　　　　　　　　　　　　　　　　　　　)\n書類不備(　　　　　　　　　　　　　　　　　　　　　)\nその他   (　　　　　　　　　　　　　　　　　　　　　)",null,null,null,null,null,null,null,null,null,null,null,"補完日"]